fUST/lending_fUST_20240824
["ID","MTS","AMOUNT","RATE_DAILY","PERIOD"]
[335698509,1724443548715,-250.0,0.0001357,2]
[335698510,1724443548737,-7016.11825558,0.00013596,2]
[335698511,1724443548757,-346.52066576,0.00013599,2]
[335698512,1724443548779,-250.0,0.00013606,2]
[335698513,1724443548803,-250.0,0.00013642,2]
[335698514,1724443548826,-250.0,0.00013677,2]
[335698515,1724443548848,-154.74467129,0.00013688,2]
[335698516,1724443548869,-301.66413705,0.00013688,2]
[335698517,1724443548890,-154.74467129,0.00013697,2]
[335698518,1724443548910,-3000.0,0.00013699,2]
[335698519,1724443548930,-263.182828,0.00013699,2]
[335698520,1724443548951,-500.0,0.000137,2]
[335698521,1724443548970,-557.10668221,0.00013971,2]
[335698522,1724443548993,-688.112066,0.00014247,2]
[335698523,1724443549013,-420.0,0.00014355,2]
[335698524,1724443549034,-402.02044802,0.00014519,2]
[335698525,1724443549054,-188.08712453,0.000149,2]
[335698526,1724443549078,-3865.11827662,0.00014949,2]
[335698527,1724443549099,-279.48007373,0.00015,2]
[335698528,1724443549120,-200.0,0.000151,2]
[335698529,1724443549142,-200.87133103,0.000151,2]
[335698530,1724443549163,-518.55968607,0.00015756,2]
[335698531,1724443549186,-587.0,0.0001579,2]
[335698532,1724443549427,-355.56595316,0.00016,2]
[335698533,1724443549456,-1000.0,0.00016438,2]
[335698534,1724443549482,-500.0,0.00016438,2]
[335698535,1724443549508,-277.76886237,0.00016915,2]
[335698536,1724443549531,-151.0,0.00017425,2]
[335698537,1724443549555,-3000.0,0.000175,2]
[335698538,1724443549578,-500.0,0.00017509,2]
[335698539,1724443549600,-500.0,0.00017509,2]
[335698540,1724443549622,-500.0,0.00017509,2]
[335698541,1724443549645,-500.0,0.00017509,2]
[335698542,1724443549667,-500.0,0.00017509,2]
[335698543,1724443549689,-500.0,0.00017509,2]
[335698544,1724443549711,-500.0,0.00017509,2]
[335698545,1724443549738,-500.0,0.00017509,2]
[335698546,1724443549760,-500.0,0.00017509,2]
[335698547,1724443549786,-500.0,0.00017509,2]
[335698548,1724443549810,-500.0,0.00017509,2]
[335698549,1724443549836,-500.0,0.00017509,2]
[335698550,1724443549858,-283.3879837,0.00017509,2]
[335698551,1724443549881,-500.0,0.00017509,2]
[335698552,1724443549902,-3000.0,0.0001751,2]
[335698553,1724443549923,-3000.0,0.0001752,2]
[335698554,1724443549947,-54920.77590642,0.0001752,2]
[335698555,1724443556094,-729.07882833,0.00012991,2]
[335698556,1724443556118,-3271.56367088,0.0001752,2]
[335698557,1724443556141,-3000.0,0.0001753,2]
[335698558,1724443556165,-151.0,0.00017683,2]
[335698559,1724443556187,-1416.0,0.00017703,2]
[335698560,1724443556208,-34208.0,0.00017703,2]
[335698561,1724443556231,-3865.11827658,0.00017799,2]
[335698562,1724443556257,-10347.1553605,0.00017898,2]
[335698563,1724443556279,-300.0,0.000179,7]
[335698564,1724443556299,-1897.1415509,0.00017918,2]
[335698565,1724443556320,-151.0,0.0001794,2]
[335698566,1724443556340,-153.0,0.00017973,2]
[335698567,1724443556361,-1897.14155087,0.00017979,2]
[335698568,1724443556382,-588.13,0.00018,2]
[335698569,1724443556405,-2000.0,0.00018018,2]
[335698570,1724443556427,-1897.14155087,0.0001804,2]
[335698571,1724443556448,-5624.56460202,0.00018069,2]
[335698572,1724443556468,-500.0,0.00018073,2]
[335698573,1724443556489,-500.0,0.00018073,2]
[335698574,1724443556508,-500.0,0.00018073,2]
[335698575,1724443556530,-10995.80389831,0.00018088,2]
[335698577,1724443637493,-346.52066576,0.00013599,2]
[335698578,1724443637515,-811.71027722,0.00014519,2]
[335698579,1724443637537,-301.66413705,0.00014519,2]
[335698580,1724443637563,-300.0,0.00015755,2]
[335698581,1724443637584,-300.0,0.00015755,2]
[335698582,1724443637605,-320.39554735,0.00015756,2]
[335698583,1724443637627,-404.35290603,0.00015756,2]
[335698584,1724443637648,-415.49636323,0.00015756,2]
[335698585,1724443637669,-154.74467129,0.00015756,2]
[335698586,1724443637691,-557.10668221,0.00015756,2]
[335698587,1724443637715,-569.6147727,0.00015756,2]
[335698588,1724443637738,-2290.69917239,0.00015756,2]
[335698589,1724443637759,-7016.11825558,0.00015756,2]
[335698590,1724443637780,-1765.84545792,0.00015756,2]
[335698591,1724443637804,-771.76994077,0.00015756,2]
[335698592,1724443637827,-277.76886237,0.000165,2]
[335698593,1724443637847,-251.4,0.00017161,2]
[335698594,1724443637870,-420.0,0.00017331,2]
[335698595,1724443637890,-251.4,0.00017419,2]
[335698596,1724443637914,-251.4,0.00017678,2]
[335698597,1724443637934,-251.4,0.00017936,2]
[335698598,1724443637954,-3025.34287757,0.00018003,2]
[335698599,1724443637973,-500.0,0.00018073,2]
[335698600,1724443637993,-402.02044802,0.00018073,2]
[335698601,1724443638012,-500.0,0.00018073,2]
[335698602,1724443638034,-9575.84733328,0.00018088,2]
[335698654,1724443832974,-372.67257998,0.00013971,2]
[335698655,1724443832983,-154.74467129,0.00013971,2]
[335698656,1724443832994,-421.44575686,0.00013971,2]
[335698657,1724443833003,-320.39554735,0.00013971,2]
[335698658,1724443833013,-527.58033297,0.00013971,2]
[335698659,1724443833022,-300.0,0.00014244,2]
[335698660,1724443833032,-300.0,0.00014244,2]
[335698661,1724443833041,-190.00145484,0.00014245,2]
[335698662,1724443833050,-154.74467129,0.00014245,2]
[335698663,1724443833060,-196.88638747,0.00014245,2]
[335698664,1724443833069,-521.54236624,0.00014245,2]
[335698665,1724443833079,-3093.89381195,0.00014245,2]
[335698666,1724443833089,-202.85052062,0.00014245,2]
[335698667,1724443833098,-181.23342523,0.00014245,2]
[335698668,1724443833108,-2785.93751667,0.00014245,2]
[335698669,1724443833117,-535.06078951,0.00014245,2]
[335698670,1724443833127,-204.22676547,0.00014245,2]
[335698671,1724443833136,-156.66300781,0.00014245,2]
[335698672,1724443833145,-500.0,0.0001445,2]
[335698673,1724443833156,-500.0,0.0001445,2]
[335698674,1724443833166,-665.72637695,0.00014519,2]
[335698675,1724443833175,-154.76011872,0.00014519,2]
[335698676,1724443833185,-1000.0,0.00014998,2]
[335698677,1724443833195,-1000.0,0.00014998,2]
[335698678,1724443833204,-420.0,0.00015601,2]
[335698679,1724443833214,-420.0,0.00015668,2]
[335698680,1724443833223,-802.31593733,0.00015896,2]
[335698681,1724443833233,-1000.0,0.00015896,2]
[335698682,1724443833242,-3000.0,0.00016826,2]
[335698683,1724443833252,-290.0,0.00017088,2]
[335698684,1724443833261,-250.0,0.00017234,2]
[335698685,1724443833272,-587.0,0.00017235,2]
[335698686,1724443833282,-250.0,0.00017282,2]
[335698687,1724443833291,-250.0,0.00017329,2]
[335698688,1724443833300,-250.0,0.00017376,2]
[335698689,1724443833310,-250.0,0.00017423,2]
[335698690,1724443833319,-250.0,0.00017471,2]
[335698691,1724443833328,-250.0,0.00017518,2]
[335698692,1724443833338,-250.0,0.00017565,2]
[335698693,1724443833348,-250.0,0.00017612,2]
[335698694,1724443833358,-250.0,0.0001766,2]
[335698695,1724443833367,-250.0,0.00017707,2]
[335698696,1724443833376,-250.0,0.00017754,2]
[335698697,1724443833386,-250.0,0.00017802,2]
[335698698,1724443833395,-250.0,0.00017849,2]
[335698699,1724443833405,-250.0,0.00017896,2]
[335698700,1724443833415,-250.0,0.00017943,2]
[335698701,1724443833423,-250.0,0.00017991,2]
[335698702,1724443833433,-250.0,0.00018038,2]
[335698703,1724443833442,-250.0,0.00018085,2]
[335698704,1724443833452,-235.06019857,0.00018088,2]
[335698705,1724443833461,-3320.87942298,0.00018103,2]
[335698706,1724443833470,-1000.0,0.00018107,2]
[335698707,1724443833480,-1000.0,0.00018107,2]
[335698708,1724443833489,-1000.0,0.00018117,2]
[335698709,1724443833499,-672.08479985,0.00018117,2]
[335698710,1724443833508,-500.0,0.00018117,2]
[335698711,1724443833517,-17562.90044044,0.00018118,2]
[335698712,1724443833530,-2948.96407706,0.00018118,2]
[335698713,1724443833543,-9533.38746942,0.00018118,2]
[335698778,1724443838558,-1626.02503485,0.00013971,2]
[335698780,1724443838569,-154.74467129,0.00013971,2]
[335698782,1724443838578,-174.83871345,0.00014245,2]
[335698784,1724443838588,-569.78751732,0.00014245,2]
[335698786,1724443838597,-1033.78388206,0.00018118,2]
[335698807,1724443838793,-9332.4265877,0.00018118,2]
[335698809,1724443838805,-30097.42032311,0.00018118,2]
[335698895,1724443840350,-298.79154931,0.00018118,2]
[335698898,1724443840405,-9420.5543809,0.00018118,2]
[335698899,1724443840414,-44363.8356863,0.00018119,2]
[335698923,1724443843571,-620.0,0.00018118,2]
[335698924,1724443843581,-350.59080009,0.00018118,2]
[335698925,1724443843591,-500.0,0.00018118,2]
[335698926,1724443843600,-291.90426165,0.00018118,2]
[335698927,1724443843609,-500.0,0.00018118,2]
[335698928,1724443843619,-500.0,0.00018118,2]
[335698929,1724443843629,-500.0,0.00018118,2]
[335698930,1724443843638,-500.0,0.00018118,2]
[335698931,1724443843648,-500.0,0.00018118,2]
[335698932,1724443843658,-500.0,0.00018118,2]
[335698933,1724443843667,-500.0,0.00018118,2]
[335698934,1724443843677,-500.0,0.00018118,2]
[335698936,1724443843687,-500.0,0.00018118,2]
[335698937,1724443843696,-500.0,0.00018118,2]
[335698938,1724443843706,-500.0,0.00018118,2]
[335698939,1724443843715,-500.0,0.00018118,2]
[335698940,1724443843725,-500.0,0.00018118,2]
[335698941,1724443843734,-500.0,0.00018118,2]
[335698942,1724443843743,-500.0,0.00018118,2]
[335698943,1724443843752,-500.0,0.00018118,2]
[335698944,1724443843761,-500.0,0.00018118,2]
[335698945,1724443843771,-500.0,0.00018118,2]
[335698946,1724443843780,-500.0,0.00018118,2]
[335698947,1724443843789,-500.0,0.00018118,2]
[335698948,1724443843800,-500.0,0.00018118,2]
[335698949,1724443843810,-237.31404989,0.00018118,2]
[335698950,1724443843819,-500.0,0.00018118,2]
[335698951,1724443843829,-500.0,0.00018118,2]
[335698952,1724443843838,-38748.74336561,0.00018119,2]
[335698953,1724443843849,-3381.97849203,0.00018131,2]
[335698954,1724443843858,-250.0,0.00018132,2]
[335698955,1724443843868,-150.0,0.00018191,2]
[335698956,1724443843878,-239.615,0.00018191,2]
[335698957,1724443843888,-150.0,0.00018191,2]
[335698958,1724443843900,-213.126,0.00018191,2]
[335698959,1724443843911,-158.795,0.00018191,2]
[335698960,1724443843921,-251.4,0.00018194,2]
[335698961,1724443843932,-150.112233,0.000182,2]
[335698962,1724443843942,-6366.38,0.00018202,2]
[335698963,1724443843953,-150.0,0.00018203,2]
[335698964,1724443843964,-150.0,0.00018203,2]
[335698965,1724443843975,-522.0,0.00018203,2]
[335698966,1724443843984,-1416.0,0.00018212,2]
[335698967,1724443843994,-4359.87872125,0.00018212,2]
[335698968,1724443844010,-29848.12127875,0.00018212,2]
[335698969,1724443844022,-35504.56955953,0.00018231,2]
[335699058,1724444832116,-300.0,0.00012721,2]
[335699059,1724444832138,-300.0,0.00012721,2]
[335699060,1724444832162,-15560.59587652,0.00012722,2]
[335699066,1724444900267,-7163.4433696,0.000125,2]
[335699067,1724444900293,-9339.40412348,0.00012722,2]
[335699068,1724444900320,-218.62299037,0.00012722,2]
[335699069,1724444900347,-4142.72437601,0.00012722,2]
[335699070,1724444900372,-3594.56006351,0.00012722,2]
[335699071,1724444900397,-214.75801558,0.00012722,2]
[335699072,1724444900424,-7898.09278961,0.00012722,2]
[335699073,1724444900449,-300.0,0.00012778,2]
[335699074,1724444900475,-1813.10412628,0.00012779,2]
[335699075,1724444900502,-258.20720256,0.00012989,2]
[335699076,1724444900528,-320.30409158,0.00012989,2]
[335699077,1724444900553,-811.1651197,0.00012999,2]
[335699078,1724444900580,-154.74467129,0.00013477,2]
[335699079,1724444900604,-156.87738314,0.00013697,2]
[335699080,1724444900630,-636.393391,0.00013699,2]
[335699081,1724444900656,-3000.0,0.00013745,2]
[335699082,1724444900681,-160.38159743,0.00013971,2]
[335699083,1724444900706,-420.0,0.00014056,2]
[335699084,1724444900731,-154.72922386,0.00014092,2]
[335699085,1724444900757,-461.279606,0.00014247,2]
[335699086,1724444900783,-309.650429,0.00014247,2]
[335699087,1724444900812,-250.0,0.00014339,2]
[335699088,1724444900838,-192.0743146,0.0001435,2]
[335699089,1724444900867,-250.0,0.00014379,2]
[335699090,1724444900894,-250.0,0.00014418,2]
[335699091,1724444900921,-250.0,0.00014457,2]
[335699092,1724444900947,-250.0,0.00014497,2]
[335699093,1724444900974,-250.0,0.00014536,2]
[335699094,1724444900999,-250.0,0.00014575,2]
[335699095,1724444901028,-250.0,0.00014615,2]
[335699096,1724444901054,-250.0,0.00014654,2]
[335699097,1724444901083,-250.0,0.00014693,2]
[335699098,1724444901108,-250.0,0.00014733,2]
[335699099,1724444901135,-250.0,0.00014772,2]
[335699100,1724444901162,-250.0,0.00014811,2]
[335699101,1724444901190,-250.0,0.00014851,2]
[335699102,1724444901216,-250.0,0.0001489,2]
[335699103,1724444901247,-250.0,0.00014929,2]
[335699104,1724444901272,-250.0,0.00014968,2]
[335699105,1724444901297,-920.89031096,0.00015,2]
[335699106,1724444901332,-250.0,0.00015008,2]
[335699107,1724444901356,-250.0,0.00015047,2]
[335699108,1724444901384,-250.0,0.00015086,2]
[335699109,1724444901409,-587.0,0.00015462,2]
[335699110,1724444901433,-650.52329764,0.00016438,2]
[335699111,1724444901457,-500.0,0.00016438,2]
[335699112,1724444901481,-500.0,0.00016999,2]
[335699113,1724444901507,-500.10179096,0.00016999,2]
[335699114,1724444901532,-500.0,0.00016999,2]
[335699115,1724444901558,-500.0,0.00016999,2]
[335699116,1724444901581,-42864.76492102,0.00017,2]
[335699117,1724444901606,-823.0,0.00017008,2]
[335699118,1724444901630,-3288.5461674,0.00017019,2]
[335699119,1724444901654,-5069.55348703,0.00017092,2]
[335699120,1724444901677,-4613.94749504,0.0001733,2]
[335699121,1724444901701,-110502.0841538,0.000174,2]
[335699122,1724444901725,-2000.0,0.0001743,2]
[335699123,1724444901749,-151.0,0.00017453,2]
[335699124,1724444901774,-3000.0,0.000175,2]
[335699125,1724444901966,-3000.0,0.0001751,2]
[335699126,1724444901992,-3000.0,0.0001752,2]
[335699127,1724444902016,-3000.0,0.0001753,2]
[335699128,1724444902044,-3000.0,0.0001754,2]
[335699129,1724444902068,-3000.0,0.0001755,2]
[335699130,1724444902094,-3000.0,0.0001756,2]
[335699131,1724444902120,-4613.94749501,0.00017564,2]
[335699132,1724444902147,-3000.0,0.0001757,2]
[335699133,1724444902172,-3000.0,0.0001758,2]
[335699134,1724444902198,-3000.0,0.0001759,2]
[335699135,1724444902225,-3000.0,0.000176,2]
[335699136,1724444902254,-151.0,0.00017708,2]
[335699137,1724444902278,-1111.52616931,0.00017758,2]
[335699138,1724444902304,-337.00371314,0.00017758,2]
[335699139,1724444902329,-366.15075023,0.0001779,2]
[335699140,1724444902353,-4613.94749501,0.00017798,2]
[335699141,1724444902376,-150.0,0.00017914,2]
[335699142,1724444902400,-5624.56460202,0.00017958,2]
[335699143,1724444902423,-151.0,0.00017962,2]
[335699144,1724444902447,-369930.23245195,0.00017999,2]
[335699145,1724444902473,-167.388302,0.00018,2]
[335699146,1724444902499,-4613.94749501,0.00018032,2]
[335699147,1724444902526,-500.0,0.00018059,2]
[335699148,1724444902551,-2988.7914807,0.00018158,2]
[335699149,1724444902576,-500.0,0.00018173,2]
[335699150,1724444902603,-500.0,0.00018173,2]
[335699151,1724444902628,-500.0,0.00018174,2]
[335699152,1724444902653,-500.0,0.00018174,2]
[335699153,1724444902677,-404.81322609,0.00018174,2]
[335699154,1724444902701,-153.9098381,0.00018174,2]
[335699155,1724444902726,-500.0,0.00018174,2]
[335699156,1724444902750,-453.95545563,0.00018174,2]
[335699157,1724444902774,-500.0,0.00018174,2]
[335699158,1724444902798,-500.0,0.00018174,2]
[335699159,1724444902822,-500.0,0.00018174,2]
[335699160,1724444902847,-500.0,0.00018174,2]
[335699161,1724444902872,-500.0,0.00018174,2]
[335699162,1724444902896,-500.0,0.00018174,2]
[335699163,1724444902921,-500.0,0.00018174,2]
[335699164,1724444902945,-500.0,0.00018174,2]
[335699165,1724444902970,-402.63735882,0.00018174,2]
[335699166,1724444902995,-500.0,0.00018174,2]
[335699167,1724444903022,-500.0,0.00018174,2]
[335699168,1724444903047,-500.0,0.00018174,2]
[335699169,1724444903071,-500.0,0.00018174,2]
[335699170,1724444903098,-500.0,0.00018174,2]
[335699171,1724444903124,-500.0,0.00018174,2]
[335699172,1724444903150,-500.0,0.00018174,2]
[335699173,1724444903176,-1205.01536168,0.00018174,2]
[335699174,1724444903201,-1205.01536168,0.00018174,2]
[335699175,1724444903225,-1205.01536168,0.00018174,2]
[335699176,1724444903251,-1205.01536168,0.00018174,2]
[335699177,1724444903276,-1205.01536168,0.00018174,2]
[335699178,1724444903302,-1205.01536168,0.00018174,2]
[335699179,1724444903330,-1205.01536168,0.00018174,2]
[335699180,1724444903356,-1205.01536168,0.00018174,2]
[335699181,1724444903382,-1205.01536168,0.00018174,2]
[335699182,1724444903406,-1205.01536168,0.00018174,2]
[335699183,1724444903431,-26433.60635224,0.00018175,9]
[335699184,1724444903454,-73814.63531437,0.00018175,2]
[335699185,1724444903477,-150.112233,0.000182,2]
[335699186,1724444903503,-151.0,0.00018217,2]
[335699187,1724444903530,-150.0,0.00018226,2]
[335699188,1724444903556,-522.0,0.00018226,2]
[335699189,1724444903582,-1416.0,0.00018226,2]
[335699190,1724444903609,-34208.0,0.00018226,2]
[335699191,1724444903635,-407.51658691,0.0001823,2]
[335699192,1724444903662,-11992.1186561,0.0001823,2]
[335699193,1724444903688,-60094.77566862,0.00018231,9]
[335699194,1724444903713,-309.48534203,0.00018231,2]
[335699195,1724444903736,-2000.0,0.00018241,2]
[335699196,1724444903762,-2000.0,0.0001825,2]
[335699197,1724444903786,-151.0,0.00018258,2]
[335699198,1724444903810,-4576.234451,0.00018258,2]
[335699199,1724444903835,-4576.234451,0.00018258,2]
[335699200,1724444903861,-200.913626,0.00018258,2]
[335699201,1724444903886,-200.913626,0.00018258,2]
[335699202,1724444903910,-1804.236366,0.00018258,2]
[335699203,1724444903935,-1804.236366,0.00018258,2]
[335699204,1724444903961,-296.8741,0.00018258,2]
[335699205,1724444903987,-296.8741,0.00018258,2]
[335699206,1724444904014,-151.0,0.00018258,2]
[335699207,1724444904043,-618.454118,0.00018258,2]
[335699208,1724444904069,-280.650672,0.00018258,2]
[335699209,1724444904096,-618.454118,0.00018258,2]
[335699210,1724444904122,-151.0,0.00018258,2]
[335699211,1724444904146,-151.0,0.00018258,2]
[335699212,1724444904171,-1087.244666,0.00018258,2]
[335699213,1724444904382,-1087.244666,0.00018258,2]
[335699214,1724444904413,-151.0,0.00018258,2]
[335699215,1724444904438,-151.0,0.00018258,2]
[335699216,1724444904463,-776.388951,0.00018258,2]
[335699217,1724444904488,-355.281952,0.00018258,2]
[335699218,1724444904515,-776.388951,0.00018258,2]
[335699219,1724444904541,-151.0,0.00018258,2]
[335699221,1724444904566,-355.281952,0.00018258,2]
[335699222,1724444904591,-2000.0,0.00018259,2]
[335699223,1724444904615,-500.0,0.00018262,2]
[335699224,1724444904639,-500.0,0.00018262,2]
[335699225,1724444904663,-1200.25381411,0.00018264,2]
[335699226,1724444904687,-4613.94749501,0.00018266,2]
[335699227,1724444904711,-2000.0,0.00018267,2]
[335699228,1724444904740,-2000.0,0.00018276,2]
[335699229,1724444904765,-2000.0,0.00018285,2]
[335699230,1724444904790,-466.25055737,0.00018376,2]
[335699231,1724444904816,-8267.46164964,0.00018384,2]
[335699232,1724444904846,-603.0,0.000184,2]
[335699233,1724444904871,-151.0,0.00018472,2]
[335699234,1724444904897,-150.112233,0.000185,2]
[335699235,1724444904924,-500.0,0.00018536,2]
[335699236,1724444904949,-500.0,0.00018536,2]
[335699237,1724444904974,-155.0,0.0001868,2]
[335699238,1724444905000,-1152.0,0.00018709,2]
[335699239,1724444905025,-1000.0,0.00018721,2]
[335699240,1724444905050,-1000.0,0.00018721,2]
[335699241,1724444905076,-151.0,0.00018727,2]
[335699242,1724444905101,-150.112233,0.000188,2]
[335699243,1724444905126,-150.112239,0.000188,2]
[335699244,1724444905150,-500.0,0.0001881,2]
[335699245,1724444905175,-500.0,0.0001881,2]
[335699246,1724444905201,-151.0,0.0001887,2]
[335699247,1724444905227,-2039.584137,0.0001887,2]
[335699248,1724444905256,-2039.584137,0.0001887,2]
[335699249,1724444905283,-151.0,0.0001887,2]
[335699250,1724444905308,-343.30424,0.0001887,2]
[335699251,1724444905336,-343.30424,0.0001887,2]
[335699252,1724444905361,-151.0,0.0001887,2]
[335699253,1724444905389,-150.0,0.00018873,2]
[335699254,1724444905415,-500.0,0.00018873,2]
[335699255,1724444905441,-500.0,0.00018873,2]
[335699256,1724444905464,-242.874,0.0001888,2]
[335699257,1724444905493,-242.874,0.0001888,2]
[335699258,1724444905540,-151.0,0.0001888,2]
[335699259,1724444905588,-151.0,0.0001888,2]
[335699260,1724444905633,-937.368531,0.0001888,2]
[335699261,1724444905673,-937.368531,0.0001888,2]
[335699262,1724444905716,-151.0,0.0001888,2]
[335699263,1724444905755,-151.0,0.0001888,2]
[335699264,1724444905795,-151.0,0.0001888,2]
[335699265,1724444905836,-151.0,0.0001888,2]
[335699266,1724444905873,-4189.080581,0.0001888,2]
[335699267,1724444905917,-4189.080581,0.0001888,2]
[335699268,1724444905954,-2559.38292,0.0001888,2]
[335699269,1724444905993,-2559.38292,0.0001888,2]
[335699270,1724444906030,-189.957913,0.0001888,2]
[335699271,1724444906070,-189.957913,0.0001888,2]
[335699272,1724444906111,-151.0,0.0001888,2]
[335699273,1724444906150,-2249.992717,0.0001888,2]
[335699274,1724444906187,-2249.992717,0.0001888,2]
[335699275,1724444906224,-303.78774,0.0001888,2]
[335699276,1724444906265,-418.298424,0.0001888,2]
[335699277,1724444906302,-303.78774,0.0001888,2]
[335699278,1724444906341,-151.0,0.0001888,2]
[335699279,1724444906379,-418.298424,0.0001888,2]
[335699280,1724444906417,-2907.298337,0.0001888,2]
[335699281,1724444906456,-151.0,0.0001888,2]
[335699282,1724444906494,-2907.298337,0.0001888,2]
[335699283,1724444906533,-1114.187783,0.0001888,2]
[335699284,1724444906571,-1114.187783,0.0001888,2]
[335699285,1724444906609,-945.227493,0.0001888,2]
[335699286,1724444906645,-945.227493,0.0001888,2]
[335699287,1724444906683,-507.819706,0.0001888,2]
[335699288,1724444906720,-507.819706,0.0001888,2]
[335699289,1724444906759,-151.0,0.0001888,2]
[335699290,1724444906796,-151.0,0.0001888,2]
[335699291,1724444906836,-151.0,0.0001888,2]
[335699292,1724444906874,-5000.0,0.00018904,2]
[335699293,1724444906912,-4655.77092839,0.00018904,2]
[335699294,1724444906950,-151.0,0.00018981,2]
[335699295,1724444906988,-11776.59456294,0.00019,2]
[335699303,1724444920897,4520.15253768,0.0001,2]
[335699388,1724445032550,-154.72922386,0.00012898,2]
[335699389,1724445032561,-7238.3692989,0.000129,2]
[335699391,1724445032570,-433.54996184,0.00014,2]
[335699513,1724445038454,-1833.99256675,0.00014,2]
[335699515,1724445038464,-3093.28626151,0.00014519,2]
[335699517,1724445038473,-159.0,0.00014837,2]
[335699519,1724445038483,-300.0,0.00014837,2]
[335699521,1724445038493,-318.196695,0.00014838,2]
[335699523,1724445038502,-159.768363,0.00015347,2]
[335699525,1724445038512,-159.768363,0.00015408,2]
[335699527,1724445038521,-159.768363,0.0001547,2]
[335699529,1724445038530,-159.768363,0.00015531,2]
[335699531,1724445038540,-159.768363,0.00015593,2]
[335699533,1724445038550,-159.768363,0.00015654,2]
[335699536,1724445038563,-159.768363,0.00015716,2]
[335699538,1724445038574,-159.768363,0.00015777,2]
[335699540,1724445038583,-159.768363,0.00015839,2]
[335699542,1724445038592,-159.768363,0.000159,2]
[335699543,1724445038602,-159.768363,0.00015962,2]
[335699545,1724445038612,-2271.14852663,0.00016,2]
[335699547,1724445038622,-159.768363,0.00016023,2]
[335699549,1724445038632,-159.768363,0.00016085,2]
[335699551,1724445038641,-159.768363,0.00016146,2]
[335699553,1724445038651,-420.0,0.00016321,2]
[335699555,1724445038661,-220.66648744,0.00017189,2]
[335699557,1724445038670,-953.84767115,0.00017299,2]
[335699559,1724445038681,-222.23353233,0.00017389,2]
[335699561,1724445038690,-64142.89871,0.0001739,2]
[335699564,1724445038700,-1122.3946975,0.0001754,2]
[335699566,1724445038712,-30949.0546575,0.0001754,2]
[335699568,1724445038723,-4000.000001,0.000177,2]
[335699570,1724445038732,-587.0,0.00017953,2]
[335699572,1724445038743,-500.0,0.00017973,2]
[335699574,1724445038752,-500.0,0.00017988,2]
[335699576,1724445038762,-283.36925826,0.00017988,2]
[335699578,1724445038772,-500.0,0.00017988,2]
[335699581,1724445038783,-590.83318981,0.00017988,2]
[335699583,1724445038792,-517.76881895,0.00017988,2]
[335699585,1724445038802,-500.0,0.00017988,2]
[335699587,1724445038811,-500.0,0.00017988,2]
[335699589,1724445038821,-500.0,0.00017988,2]
[335699591,1724445038831,-500.0,0.00017988,2]
[335699593,1724445038841,-500.0,0.00017988,2]
[335699595,1724445038851,-13748.04095903,0.00017989,2]
[335699599,1724445038873,-405.85748006,0.00017989,2]
[335699641,1724445040585,-470.03495942,0.00016999,2]
[335699642,1724445040643,-529.96504058,0.00016999,2]
[335699643,1724445040655,-1000.0,0.00017091,2]
[335699644,1724445040665,-1000.0,0.00017288,2]
[335699645,1724445040676,-672.08479985,0.00017399,2]
[335699646,1724445040687,-50582.34022677,0.00017989,2]
[335699685,1724445046292,-159763.90681914,0.00017989,2]
[335699687,1724445046302,-88888.0,0.00018075,2]
[335699689,1724445046312,-227.836047,0.00018231,2]
[335699691,1724445046322,-227.836047,0.00018231,2]
[335699693,1724445046334,-3960.255293,0.00018231,2]
[335699696,1724445046344,-3960.255293,0.00018231,2]
[335699698,1724445046356,-1045.088408,0.00018231,2]